[Event "BLR-ch 1st Stage Women 2020"]
[Site "Minsk"]
[Date "2020.02.01"]
[Round "6.3"]
[White "Kolosovskaya, Olga"]
[Black "Sukalina, Alina"]
[Result "1/2-1/2"]
[ECO "A17"]
[WhiteElo "1719"]
[BlackElo "1622"]
[Annotator "NA"]
[PlyCount "114"]
[EventDate "2020.02.01"]
[EventType "swiss"]
[EventCountry "BLR"]
[SourceTitle "playchess.com"]
[Source "ChessBase"]
[SourceQuality "1"]
[TimeControl "40/5400+30:1800+30"]

1. e3 {[%emt 0:00:00]} Nf6 {[%emt 0:01:32]} 2. c4 {[%emt 0:00:00]} e6 {[%emt 0:00:11]} 3. Nf3 {[%emt 0:00:07]} d5 {[%emt 0:01:58]} 4. cxd5 {[%emt 0:02:31]} exd5 {[%emt 0:00:20]} 5. Be2 {[%emt 0:00:16]} Bd6 {[%emt 0:01:08]} 6. Nc3 {[%emt 0:00:17]} c6 {[%emt 0:00:27]} 7. O-O {[%emt 0:00:34]} O-O {[%emt 0:01:03]} 8. d3 {[%emt 0:02:05]} Re8 {[%emt 0:02:54]} 9. b3 {[%emt 0:30:23]} h6 {[%emt 0:03:06]} 10. Bb2 {[%emt 0:01:50]} Bf5 {[%emt 0:00:34]} 11. Rc1 {[%emt 0:04:26]} a5 {[%emt 0:04:42]} 12. Na4 {[%emt 0:19:32]} Na6 {[%emt 0:02:27]} 13. Nc3 {[%emt 0:05:49]} Bh7 {[%emt 0:19:29]} 14. Kh1 {[%emt 0:00:11]} b5 {[%emt 0:04:21]} 15. h3 {[%emt 0:00:26]} Qd7 {[%emt 0:03:48]} 16. Rg1 {[%emt 0:05:48]} c5 {[%emt 0:07:37]} 17. a4 {[%emt 0:10:20]} bxa4 {[%emt 0:05:36]} 18. bxa4 {[%emt 0:00:01]} Nc7 {[%emt 0:01:43]} 19. Qf1 {[%emt 0:00:28]} Rab8 {[%emt 0:04:58]} 20. Ba1 {[%emt 0:00:05]} Rb4 {[%emt 0:01:04]} 21. d4 {[%emt 0:02:50]} c4 {[%emt 0:01:26]} 22. Ne5 {[%emt 0:00:41]} Bxe5 {[%emt 0:05:35]} 23. dxe5 Rxe5 {[%emt 0:00:01]} 24. Na2 {[%emt 0:00:25]} Re6 {[%emt 0:00:38]} 25. Nxb4 axb4 {[%emt 0:00:00]} 26. Bxf6 {[%emt 0:00:57]} Rxf6 {[%emt 0:00:09]} 27. Bxc4 {[%emt 0:03:46]} Be4 {[%emt 0:06:11]} 28. f3 {[%emt 0:01:07]} dxc4 {[%emt 0:00:23]} 29. Qxc4 {[%emt 0:04:24]} Rxf3 {[%emt 0:05:49]} 30. Rgd1 {[%emt 0:02:59]} Rxh3+ {[%emt 0:01:10]} 31. Kg1 {[%emt 0:00:03]} Qg4 {[%emt 0:00:12]} 32. Rd2 {[%emt 0:00:30]} Rg3 {[%emt 0:01:31]} 33. Qa2 {[%emt 0:00:23]} Nd5 {[%emt 0:02:36]} 34. Rf1 {[%emt 0:00:35]} Rxg2+ {[%emt 0:03:20]} 35. Rxg2 {[%emt 0:00:05]} Qxg2+ {[%emt 0:00:00]} 36. Qxg2 {[%emt 0:00:09]} Bxg2 {[%emt 0:00:02]} 37. Rc1 {[%emt 0:03:14]} Be4 {[%emt 0:00:47]} 38. Rc8+ {[%emt 0:00:04]} Kh7 {[%emt 0:00:04]} 39. Kf2 {[%emt 0:00:40]} b3 {[%emt 0:02:55]} 40. Rb8 {[%emt 0:00:00]} Bc2 {[%emt 0:00:00]} 41. a5 {[%emt 0:00:17]} Nc7 {[%emt 0:00:46]} 42. Ke2 {[%emt 0:00:25]} h5 {[%emt 0:02:05]} 43. Kd2 {[%emt 0:01:52]} f6 {[%emt 0:01:50]} 44. Rb7 {[%emt 0:03:21]} Na6 {[%emt 0:01:17]} 45. Rb5 {[%emt 0:02:16]} Kg6 {[%emt 0:00:25]} 46. e4 {[%emt 0:01:25]} Bxe4 {[%emt 0:02:36]} 47. Rxb3 {[%emt 0:00:05]} Kf5 {[%emt 0:01:05]} 48. Ke3 {[%emt 0:00:16]} Nc7 {[%emt 0:00:55]} 49. a6 {[%emt 0:03:19]} Nxa6 {[%emt 0:04:47]} 50. Rb5+ {[%emt 0:00:05]} Kg4 {[%emt 0:00:01]} 51. Kxe4 {[%emt 0:00:07]} h4 {[%emt 0:01:37]} 52. Rb1 {[%emt 0:01:39]} f5+ {[%emt 0:00:24]} 53. Ke5 {[%emt 0:00:56]} f4 {[%emt 0:06:15]} 54. Rg1+ {[%emt 0:00:21]} Kf3 {[%emt 0:00:10]} 55. Rxg7 {[%emt 0:02:28]} Nc5 {[%emt 0:00:06]} 56. Rh7 {[%emt 0:01:05]} Nd3+ {[%emt 0:00:29]} 57. Kd4 {[%emt 0:02:46]} Nf2 {[%emt 0:21:55]} 1/2-1/2

[Event "BLR-ch 1st Stage Women 2020"]
[Site "Minsk"]
[Date "2020.02.01"]
[Round "7.1"]
[White "Poliakova, Varvara"]
[Black "Zeliantsova, Kseniya"]
[Result "1-0"]
[ECO "B07"]
[WhiteElo "2052"]
[BlackElo "1993"]
[Annotator "NA"]
[PlyCount "113"]
[EventDate "2020.02.01"]
[EventType "swiss"]
[EventCountry "BLR"]
[SourceTitle "playchess.com"]
[Source "ChessBase"]
[SourceQuality "1"]
[TimeControl "40/5400+30:1800+30"]

1. e4 {[%emt 0:00:00]} d6 {[%emt 0:00:00]} 2. d4 {[%emt 0:00:57]} Nf6 {[%emt 0:00:00]} 3. Nc3 {[%emt 0:00:22]} g6 {[%emt 0:00:00]} 4. Bg5 {[%emt 0:00:17]} Bg7 {[%emt 0:00:29]} 5. f4 {[%emt 0:01:00]} O-O {[%emt 0:03:44]} 6. Qd2 {[%emt 0:01:31]} c6 {[%emt 0:04:26]} 7. Nf3 {[%emt 0:00:29]} b5 {[%emt 0:03:16]} 8. a3 {[%emt 0:01:37]} a5 {[%emt 0:00:36]} 9. Bd3 {[%emt 0:08:37]} Bb7 {[%emt 0:02:25]} 10. O-O {[%emt 0:02:49]} b4 {[%emt 0:14:17]} 11. Nd1 {[%emt 0:12:43]} c5 {[%emt 0:08:41]} 12. axb4 {[%emt 0:04:45]} axb4 {[%emt 0:13:51]} 13. Nf2 $11 {[%emt 0:02:44]} Nbd7 {[%emt 0:07:59]} 14. e5 {[%emt 0:05:32]} Ne8 {[%emt 0:07:11]} 15. Qe2 {[%emt 0:14:03]} Rxa1 {[%emt 0:06:33]} 16. Rxa1 {[%emt 0:00:21]} Bxf3 {[%emt 0:00:32]} 17. Qxf3 {[%emt 0:01:46]} f6 {[%emt 0:02:48]} 18. Ra8 {[%emt 0:07:01]} Nb8 {[%emt 0:06:56]} 19. exf6 {[%emt 0:03:23]} exf6 {[%emt 0:00:22]} 20. Bh4 {[%emt 0:00:33]} Nc7 {[%emt 0:01:02]} 21. Ra7 {[%emt 0:02:38]} d5 {[%emt 0:06:06]} 22. dxc5 {[%emt 0:02:03]} Nc6 {[%emt 0:01:32]} 23. Ra1 {[%emt 0:01:42]} Ne6 {[%emt 0:01:28]} 24. Rd1 {[%emt 0:04:53]} Ned4 {[%emt 0:03:13]} 25. Qe3 {[%emt 0:00:07]} Re8 {[%emt 0:00:04]} 26. Qd2 {[%emt 0:00:03]} Qe7 {[%emt 0:01:03]} 27. Nh3 {[%emt 0:05:02]} Qf7 {[%emt 0:03:52]} 28. Bf2 {[%emt 0:01:58]} f5 {[%emt 0:00:56]} 29. c3 {[%emt 0:01:47]} Nb3 {[%emt 0:00:30]} 30. Qc2 {[%emt 0:00:14]} d4 {[%emt 0:00:06]} 31. Ng5 {[%emt 0:00:25]} Qd5 {[%emt 0:00:57]} 32. c4 {[%emt 0:00:05]} Qxc5 {[%emt 0:00:06]} 33. Qxb3 {[%emt 0:00:09]} h6 {[%emt 0:00:52]} 34. Nf3 {[%emt 0:00:07]} Bf6 {[%emt 0:00:19]} 35. Qc2 {[%emt 0:00:14]} Kg7 {[%emt 0:00:36]} 36. b3 {[%emt 0:00:05]} Ra8 {[%emt 0:00:25]} 37. Be2 {[%emt 0:00:24]} Ra3 {[%emt 0:00:38]} 38. Ne5 {[%emt 0:00:27]} Nxe5 {[%emt 0:00:20]} 39. fxe5 {[%emt 0:00:08]} Bxe5 {[%emt 0:00:10]} 40. Qd3 {[%emt 0:00:00]} Ra2 {[%emt 0:00:00]} 41. Bf3 {[%emt 0:02:01]} Rb2 {[%emt 0:02:21]} 42. Rd2 {[%emt 0:01:51]} Rxd2 {[%emt 0:00:56]} 43. Qxd2 {[%emt 0:00:03]} g5 {[%emt 0:01:07]} 44. Bd5 {[%emt 0:00:20]} Kg6 {[%emt 0:01:26]} 45. Qa2 {[%emt 0:00:53]} Qd6 {[%emt 0:00:33]} 46. Qa7 {[%emt 0:01:22]} Qf6 {[%emt 0:02:16]} 47. Qa8 {[%emt 0:00:31]} Qe7 {[%emt 0:04:19]} 48. Qg8+ {[%emt 0:00:16]} Bg7 {[%emt 0:00:26]} 49. Qe6+ {[%emt 0:00:24]} Qxe6 {[%emt 0:00:04]} 50. Bxe6 {[%emt 0:00:04]} d3 {[%emt 0:00:06]} 51. Kf1 {[%emt 0:00:11]} Bc3 {[%emt 0:00:11]} 52. c5 {[%emt 0:00:35]} Kf6 {[%emt 0:00:03]} 53. Bc4 {[%emt 0:00:07]} d2 {[%emt 0:00:11]} 54. Ke2 {[%emt 0:00:02]} f4 {[%emt 0:00:18]} 55. c6 {[%emt 0:00:05]} Be5 {[%emt 0:00:47]} 56. Kxd2 {[%emt 0:00:07]} Bd6 {[%emt 0:00:11]} 57. Bb6 {[%emt 0:00:06]} 1-0

[Event "BLR-ch 1st Stage Women 2020"]
[Site "Minsk"]
[Date "2020.02.01"]
[Round "7.2"]
[White "Beinenson, Katsiaryna"]
[Black "Kolosovskaya, Olga"]
[Result "1-0"]
[ECO "B27"]
[WhiteElo "1985"]
[BlackElo "1719"]
[Annotator "NA"]
[PlyCount "105"]
[EventDate "2020.02.01"]
[EventType "swiss"]
[EventCountry "BLR"]
[SourceTitle "playchess.com"]
[Source "ChessBase"]
[SourceQuality "1"]
[TimeControl "40/5400+30:1800+30"]

1. e4 {[%emt 0:00:00]} g6 {[%emt 0:00:00]} 2. d4 {[%emt 0:00:00]} Bg7 {[%emt 0:00:00]} 3. Nc3 {[%emt 0:00:14]} c5 {[%emt 0:01:11]} 4. Nf3 {[%emt 0:02:54]} b6 {[%emt 0:06:36]} 5. Be3 {[%emt 0:06:03]} Ba6 {[%emt 0:17:11]} 6. dxc5 {[%emt 0:04:05]} Bxf1 {[%emt 0:00:10]} 7. Kxf1 {[%emt 0:00:07]} Nf6 {[%emt 0:04:07]} 8. cxb6 {[%emt 0:04:54]} axb6 {[%emt 0:00:05]} 9. h3 {[%emt 0:08:03]} O-O {[%emt 0:06:28]} 10. e5 {[%emt 0:03:59]} Ne8 {[%emt 0:00:05]} 11. Nd5 {[%emt 0:06:26]} d6 {[%emt 0:01:20]} 12. Bxb6 {[%emt 0:06:35]} Qd7 {[%emt 0:00:06]} 13. Qd3 {[%emt 0:00:53]} dxe5 {[%emt 0:02:30]} 14. Bc5 {[%emt 0:00:21]} e4 {[%emt 0:02:19]} 15. Qxe4 {[%emt 0:02:46]} Qb5+ {[%emt 0:00:06]} 16. Kg1 {[%emt 0:00:07]} Qxc5 {[%emt 0:02:42]} (16... Nc6 $16) 17. Nxe7+ {[%emt 0:00:46]} Kh8 {[%emt 0:00:06]} 18. Qxa8 $16 {[%emt 0:01:07]} Nc7 {[%emt 0:09:28]} 19. Qe4 {[%emt 0:04:10]} Re8 {[%emt 0:03:54]} 20. Re1 {[%emt 0:02:48]} Bf6 {[%emt 0:00:23]} 21. Nxg6+ {[%emt 0:00:44]} hxg6 {[%emt 0:00:06]} 22. Qxe8+ {[%emt 0:00:25]} Nxe8 {[%emt 0:00:05]} 23. Rxe8+ {[%emt 0:00:04]} Kg7 {[%emt 0:00:05]} 24. Rxb8 {[%emt 0:00:04]} Qxc2 {[%emt 0:00:11]} 25. g3 {[%emt 0:03:23]} Bxb2 {[%emt 0:04:24]} 26. Kg2 {[%emt 0:03:56]} Ba3 {[%emt 0:00:59]} 27. Rhb1 {[%emt 0:02:00]} Qxa2 {[%emt 0:00:50]} 28. h4 {[%emt 0:00:33]} Bc5 {[%emt 0:07:39]} 29. R1b2 {[%emt 0:00:08]} Qd5 {[%emt 0:00:07]} 30. Rd2 {[%emt 0:03:10]} Qc6 {[%emt 0:03:07]} 31. Rbd8 {[%emt 0:00:09]} Bb4 {[%emt 0:00:26]} 32. R2d7 {[%emt 0:00:56]} Bc5 {[%emt 0:00:48]} 33. Rd5 {[%emt 0:00:35]} Qb6 {[%emt 0:03:35]} 34. R8d7 {[%emt 0:01:31]} Bxf2 {[%emt 0:01:50]} 35. Ng5 {[%emt 0:00:19]} Bxg3 {[%emt 0:02:02]} 36. Kxg3 {[%emt 0:07:09]} Qg1+ {[%emt 0:00:16]} 37. Kf4 {[%emt 0:01:45]} Qh2+ {[%emt 0:04:03]} 38. Ke3 {[%emt 0:00:43]} Qg1+ {[%emt 0:04:03]} 39. Kd3 {[%emt 0:00:50]} Qg3+ {[%emt 0:00:31]} 40. Kc4 {[%emt 0:00:00]} Qf4+ {[%emt 0:00:00]} 41. Kc5 {[%emt 0:02:05]} Qe3+ {[%emt 0:06:23]} 42. Kc6 {[%emt 0:00:48]} Qc3+ {[%emt 0:00:12]} 43. Kb7 {[%emt 0:00:49]} Qb4+ {[%emt 0:01:13]} 44. Kc7 {[%emt 0:00:35]} Qf4+ {[%emt 0:01:15]} 45. Kc8 {[%emt 0:00:41]} Qc4+ {[%emt 0:02:52]} 46. Kd8 {[%emt 0:00:30]} Qxh4 {[%emt 0:03:47]} 47. Rxf7+ {[%emt 0:00:53]} Kg8 {[%emt 0:00:07]} 48. Ke7 {[%emt 0:02:20]} Qe1+ {[%emt 0:00:20]} 49. Kf6 {[%emt 0:00:32]} Qc3+ {[%emt 0:00:26]} 50. Re5 {[%emt 0:01:58]} Qc6+ {[%emt 0:01:42]} 51. Re6 {[%emt 0:00:23]} Qc3+ {[%emt 0:00:14]} 52. Kxg6 {[%emt 0:00:16]} Qd3+ {[%emt 0:01:14]} 53. Kh6 {[%emt 0:00:39]} 1-0

[Event "BLR-ch 1st Stage Women 2020"]
[Site "Minsk"]
[Date "2020.02.01"]
[Round "7.3"]
[White "Stsepkina, Yauheniya"]
[Black "Norman, Kseniya"]
[Result "0-1"]
[ECO "E81"]
[WhiteElo "1671"]
[BlackElo "1730"]
[Annotator "NA"]
[PlyCount "70"]
[EventDate "2020.02.01"]
[EventType "swiss"]
[EventCountry "BLR"]
[SourceTitle "playchess.com"]
[Source "ChessBase"]
[SourceQuality "1"]
[TimeControl "40/5400+30:1800+30"]

1. d4 {[%emt 0:00:00]} Nf6 {[%emt 0:00:00]} 2. c4 {[%emt 0:00:00]} g6 {[%emt 0:00:00]} 3. Nc3 {[%emt 0:00:00]} Bg7 {[%emt 0:00:02]} 4. e4 {[%emt 0:00:00]} d6 {[%emt 0:00:10]} 5. f3 {[%emt 0:00:00]} O-O {[%emt 0:00:17]} 6. Be3 {[%emt 0:00:00]} Nbd7 {[%emt 0:00:53]} 7. Qd2 {[%emt 0:00:29]} c5 {[%emt 0:00:59]} 8. Nh3 {[%emt 0:04:14]} cxd4 {[%emt 0:03:25]} 9. Bxd4 {[%emt 0:00:05]} Nc5 {[%emt 0:02:40]} 10. Nf2 {[%emt 0:03:21]} Be6 {[%emt 0:01:37]} 11. Nd5 {[%emt 0:12:04]} Bxd5 {[%emt 0:05:35]} 12. cxd5 {[%emt 0:07:42]} e6 {[%emt 0:09:29]} 13. Bxc5 {[%emt 0:04:32]} dxc5 {[%emt 0:00:02]} 14. dxe6 {[%emt 0:03:06]} Qxd2+ {[%emt 0:00:09]} 15. Kxd2 {[%emt 0:00:06]} fxe6 {[%emt 0:00:35]} 16. Bc4 {[%emt 0:00:25]} Kf7 {[%emt 0:02:02]} 17. Nd3 {[%emt 0:17:45]} Nd7 {[%emt 0:04:36]} 18. Rac1 {[%emt 0:04:36]} Ne5 {[%emt 0:10:22]} 19. Nxe5+ {[%emt 0:18:26]} Bxe5 {[%emt 0:00:03]} 20. g3 {[%emt 0:00:18]} Rab8 {[%emt 0:09:12]} 21. b3 {[%emt 0:09:49]} b5 {[%emt 0:01:50]} 22. Bd3 {[%emt 0:00:16]} Bd4 {[%emt 0:00:46]} 23. a4 {[%emt 0:03:30]} bxa4 {[%emt 0:04:55]} 24. bxa4 {[%emt 0:00:01]} Rb4 {[%emt 0:00:45]} 25. Rc4 {[%emt 0:00:40]} Rfb8 {[%emt 0:03:01]} 26. Rhc1 {[%emt 0:00:40]} Rb3 {[%emt 0:01:17]} 27. R1c2 {[%emt 0:08:36]} Ra3 {[%emt 0:01:19]} 28. Ke2 {[%emt 0:02:14]} Rbb3 {[%emt 0:03:02]} 29. Rd2 {[%emt 0:00:47]} Bc3 {[%emt 0:03:44]} 30. Rd1 {[%emt 0:00:36]} Rb2+ {[%emt 0:00:45]} 31. Kf1 {[%emt 0:00:40]} Rxh2 {[%emt 0:00:56]} 32. Be2 {[%emt 0:00:27]} Bd4 {[%emt 0:01:00]} 33. Rc2 {[%emt 0:00:29]} Rxa4 {[%emt 0:01:06]} 34. f4 {[%emt 0:00:32]} Ra3 {[%emt 0:00:30]} 35. Rd3 {[%emt 0:00:15]} Ra1+ {[%emt 0:00:15]} 0-1

[Event "BLR-ch 1st Stage Women 2020"]
[Site "Minsk"]
[Date "2020.02.02"]
[Round "8.1"]
[White "Beinenson, Katsiaryna"]
[Black "Sukalina, Alina"]
[Result "0-1"]
[ECO "C54"]
[WhiteElo "1985"]
[BlackElo "1622"]
[Annotator "NA"]
[PlyCount "72"]
[EventDate "2020.02.01"]
[EventType "swiss"]
[EventCountry "BLR"]
[SourceTitle "playchess.com"]
[Source "ChessBase"]
[SourceQuality "1"]
[TimeControl "40/5400+30:1800+30"]

{[%evp 15,66,28,32767,32767,32767,14,32767,32767,31,9,32767,0,30,36,32,6,25,16,37,18,68,22,59,16,122,122,32767,32767,211,201,191,196,171,159,291,288,249,219,351,273,259,225,32767,32767,189,32767,-201,32767,-105,-106,-143,-181,-100]} 1. e4 {[%emt 0:00:00]} e5 {[%emt 0:00:00]} 2. Nf3 {[%emt 0:00:00]} Nc6 {[%emt 0:00:38]} 3. Bc4 {[%emt 0:00:00]} Bc5 {[%emt 0:00:32]} 4. c3 {[%emt 0:00:09]} Nf6 {[%emt 0:00:23]} 5. d3 {[%emt 0:00:08]} d6 {[%emt 0:01:34]} 6. b4 {[%emt 0:00:16]} Bb6 {[%emt 0:00:12]} 7. a4 {[%emt 0:00:07]} a6 {[%emt 0:00:42]} 8. O-O {[%emt 0:00:27]} h6 {[%emt 0:00:46]} 9. a5 {[%emt 0:01:37] C54: Giuoco Piano: 4 c3 Nf6, main lines with 5 d4 and 5 d3} Ba7 {[%emt 0:00:30]} 10. Nbd2 {[%emt 0:00:52]} O-O {[%emt 0:00:30]} 11. h3 {[%emt 0:00:43]} Ne7 {[%emt 0:08:17]} 12. Bb3 {[%emt 0:01:01]} Ng6 {[%emt 0:02:04]} 13. Nc4 {[%emt 0:01:10] [#]} b5 $146 {[%emt 0:02:57]} ({Predecessor:} 13... Re8 14. Be3 Be6 15. Bxa7 Rxa7 16. Re1 Ra8 17. Ba4 Bd7 18. Ne3 Nf4 19. Bc2 Qe7 {0-1 (31) Kovanova,B (2391)-Shen,Y (2425) St Petersburg 2012}) 14. axb6 {[%emt 0:01:38]} cxb6 {[%emt 0:00:24]} 15. Re1 {[%emt 0:06:22]} b5 {[%emt 0:01:39]} 16. Ne3 {[%emt 0:04:29]} Qb6 {[%emt 0:13:47]} 17. Qc2 {[%emt 0:05:42]} Nf4 {[%emt 0:00:45]} 18. Kh2 {[%emt 0:09:28]} Bb8 {[%emt 0:21:26]} 19. Ng1 {[%emt 0:04:22]} Bb7 {[%emt 0:05:11]} (19... a5 $11 {keeps the balance.}) 20. Nf5 {[%emt 0:05:08]} d5 {[%emt 0:07:52]} 21. Bxf4 {[%emt 0:09:51]} exf4 {[%emt 0:00:17] [#]} 22. e5 $1 {[%emt 0:00:44]} Nh7 {[%emt 0:05:00]} 23. Ne7+ {[%emt 0:00:52] Decoy} Kh8 {[%emt 0:00:13]} 24. Nxd5 {[%emt 0:00:37]} Bxd5 {[%emt 0:00:35]} (24... Qg6 {keeps fighting.} 25. Qd2 (25. Nxf4 Bxe5 {[%mdl 64] Decoy} 26. Rxe5 Qf6 $16) 25... Rd8) 25. Bxd5 {[%emt 0:00:07]} Ra7 {[%emt 0:00:06]} 26. Nf3 {[%emt 0:02:41]} Rc7 {[%emt 0:00:58]} (26... Qd8 $142) 27. Qd2 {[%emt 0:01:05]} Ng5 {[%emt 0:01:48]} 28. Ra3 {[%emt 0:13:44]} Rd7 {[%emt 0:02:22]} 29. Qa2 {[%emt 0:03:57]} Nxf3+ {[%emt 0:01:02]} 30. gxf3 {[%emt 0:01:14]} Rxd5 $1 {[%emt 0:01:48] Double Attack} 31. Rxa6 {[%emt 0:01:29] [#]} Qd8 {[%emt 0:03:25]} (31... Qb7 $1 $19 32. d4 Rdd8) 32. d4 {[%emt 0:00:09]} Rd7 {[%emt 0:01:14]} 33. Qd2 {[%emt 0:03:39]} Qc8 $17 {[%emt 0:05:15]} (33... Re7 $19 34. Qd3 Rc7) 34. Rb6 {[%emt 0:03:27]} Qc4 {[%emt 0:01:50]} 35. Qxf4 {[%emt 0:01:48]} f6 {[%emt 0:02:15]} 36. Rg1 {[%emt 0:08:16]} Bxe5 {[%emt 0:00:32]} 0-1

[Event "BLR-ch 1st Stage Women 2020"]
[Site "Minsk"]
[Date "2020.02.02"]
[Round "8.2"]
[White "Zeliantsova, Kseniya"]
[Black "Norman, Kseniya"]
[Result "1-0"]
[ECO "B51"]
[WhiteElo "1993"]
[BlackElo "1730"]
[Annotator "NA"]
[PlyCount "53"]
[EventDate "2020.02.01"]
[EventType "swiss"]
[EventCountry "BLR"]
[SourceTitle "playchess.com"]
[Source "ChessBase"]
[SourceQuality "1"]
[TimeControl "40/5400+30:1800+30"]

{[%evp 15,43,53,43,31,45,42,84,60,59,45,77,36,112,72,137,119,111,145,216,162,32767,32767,32767,32767,218,246,248,240,389,450]} 1. e4 {[%emt 0:00:00]} c5 {[%emt 0:00:00]} 2. Nf3 {[%emt 0:00:00]} d6 {[%emt 0:00:00]} 3. Bb5+ {[%emt 0:00:26]} Nc6 {[%emt 0:00:05]} 4. O-O {[%emt 0:01:31]} Bd7 {[%emt 0:01:11]} 5. c3 {[%emt 0:01:00]} Nf6 {[%emt 0:02:01]} 6. Re1 {[%emt 0:00:08]} g6 {[%emt 0:01:18]} 7. d4 {[%emt 0:02:11]} cxd4 {[%emt 0:00:47]} 8. cxd4 {[%emt 0:00:18]} Bg7 {[%emt 0:00:43]} 9. Nc3 {[%emt 0:01:15] B51: Sicilian: Moscow Variation (3 Bb5+) without 3...Bd7} O-O {[%emt 0:01:25]} 10. h3 {[%emt 0:02:51]} Ne8 {[%emt 0:04:56] [#]} 11. Bf4 $146 {[%emt 0:07:40]} ({Predecessor:} 11. Bg5 Nc7 12. Bf1 h6 13. Be3 e6 14. Qd2 Kh7 15. Rad1 Ne7 16. e5 d5 17. g4 Nc6 {½-½ (45) Nuri,M (2291)-Rahimli,I (1992) Istanbul 2019}) 11... Nc7 {[%emt 0:01:46]} 12. Bf1 {[%emt 0:08:06]} e5 {[%emt 0:13:29]} 13. Be3 {[%emt 0:02:46]} (13. Bg5 $16 Bf6 14. Bxf6 Qxf6 15. d5) 13... b6 {[%emt 0:15:01]} (13... Nxd4 $14 14. Nxd4 exd4 15. Bxd4 Be5) 14. Qd2 {[%emt 0:11:22]} f5 {[%emt 0:03:21]} 15. dxe5 {[%emt 0:01:30]} dxe5 {[%emt 0:01:51]} 16. Bg5 {[%emt 0:00:41]} Qc8 {[%emt 0:03:25]} (16... Qe8 $16 {was necessary.}) 17. Rad1 {[%emt 0:09:22]} Be6 {[%emt 0:08:39]} 18. exf5 {[%emt 0:02:52]} Bxf5 {[%emt 0:01:48]} 19. Bh6 {[%emt 0:03:54]} Rd8 {[%emt 0:15:32]} 20. Qe3 {[%emt 0:02:03]} Rxd1 {[%emt 0:00:37]} 21. Rxd1 {[%emt 0:00:06]} ({Weaker is} 21. Nxd1 Qf8 $16) 21... Qe8 {[%emt 0:02:10]} (21... Qf8 {was called for.}) 22. Nb5 $18 {[%emt 0:09:36]} Nxb5 {[%emt 0:03:54]} 23. Bxb5 {[%emt 0:00:14]} e4 {[%emt 0:01:02]} 24. Bxg7 {[%emt 0:00:49]} exf3 {[%emt 0:01:40]} 25. Qxf3 {[%emt 0:00:48]} Be4 {[%emt 0:01:35]} 26. Qc3 {[%emt 0:00:17]} Rc8 {[%emt 0:03:37]} 27. Bc4+ {[%emt 0:00:27]} 1-0

[Event "BLR-ch 1st Stage Women 2020"]
[Site "Minsk"]
[Date "2020.02.02"]
[Round "8.3"]
[White "Danchanka, Zlata"]
[Black "Poliakova, Varvara"]
[Result "0-1"]
[ECO "A04"]
[WhiteElo "1576"]
[BlackElo "2052"]
[Annotator "NA"]
[PlyCount "110"]
[EventDate "2020.02.01"]
[EventType "swiss"]
[EventCountry "BLR"]
[SourceTitle "playchess.com"]
[Source "ChessBase"]
[SourceQuality "1"]
[TimeControl "40/5400+30:1800+30"]

{[%evp 13,108,14,30,21,69,32767,-4,7,0,13,50,32767,43,10,63,64,68,63,77,67,81,83,32767,57,32767,32767,95,77,80,22,43,20,0,0,0,-217,-186,-216,-100,32767,-231,-312,32767,32767,32767,32767,32767,32767,-177,-174,-177,32767,-93,-130,-58,-61,-61,-71,32767,-279,-300,-329,-347,-283,-61,-65,-12,-189,-327,-350,32767,32767,32767,-8,0,0,0,-132,-109,-100,32767,32767,0,32767,32767,0,32767,-10,0,0,0,0,13,0,0,-29976,-29980]} 1. Nf3 {[%emt 0:00:00]} d6 {[%emt 0:00:00]} 2. d3 {[%emt 0:00:55]} e5 {[%emt 0:00:00]} 3. c4 {[%emt 0:00:30]} c6 {[%emt 0:00:28]} 4. Nc3 {[%emt 0:00:15]} g6 {[%emt 0:00:49]} 5. Bg5 {[%emt 0:01:05]} Qc7 {[%emt 0:00:24]} 6. Qd2 {[%emt 0:01:31]} Bg7 {[%emt 0:00:36]} 7. e4 {[%emt 0:02:43]} Nd7 {[%emt 0:04:08]} 8. Be2 {[%emt 0:04:02]} Nc5 {[%emt 0:01:38]} 9. h4 {[%emt 0:02:41]} Ne6 {[%emt 0:02:34]} 10. Be3 {[%emt 0:01:08]} Nd4 {[%emt 0:04:40]} 11. h5 {[%emt 0:01:49]} Be6 {[%emt 0:10:10]} 12. Rc1 {[%emt 0:11:18]} Qd7 {[%emt 0:05:40]} 13. Ng5 {[%emt 0:05:08]} O-O-O {[%emt 0:03:33]} 14. Nxe6 {[%emt 0:02:07]} Qxe6 {[%emt 0:03:06]} 15. b4 {[%emt 0:14:58]} Kb8 {[%emt 0:01:49]} 16. b5 {[%emt 0:01:11]} c5 {[%emt 0:04:45]} 17. h6 {[%emt 0:10:04]} Bf8 {[%emt 0:01:26]} 18. Nd5 {[%emt 0:00:13]} f5 {[%emt 0:02:28]} 19. Qa5 {[%emt 0:03:42]} Qd7 {[%emt 0:08:04]} 20. Bxd4 {[%emt 0:10:39]} exd4 {[%emt 0:02:09]} 21. b6 {[%emt 0:00:14]} (21. exf5 $16 Bxh6 22. Rd1) 21... a6 {[%emt 0:01:22]} 22. Bf3 {[%emt 0:05:08]} Ne7 $1 {[%emt 0:00:59]} 23. Nc7 {[%emt 0:02:08]} Nc6 {[%emt 0:01:35]} 24. Nxa6+ $2 {[%emt 0:04:16]} (24. Qa4 $11) 24... bxa6 {[%emt 0:00:15]} 25. Qxa6 {[%emt 0:00:13] [#]} Qb7 {[%emt 0:01:00]} ({Better is} 25... Ne5 $1 $19 26. Qa5 Qb7) 26. Qa4 {[%emt 0:04:26] [#]} Ne5 $1 {[%emt 0:00:11]} ({And not} 26... Qxb6 27. O-O $16) 27. Rb1 {[%emt 0:03:26]} Qa8 {[%emt 0:02:58]} 28. Qxa8+ {[%emt 0:03:55]} Kxa8 {[%emt 0:00:06]} 29. exf5+ {[%emt 0:00:11]} Nxf3+ {[%emt 0:00:10]} 30. gxf3 {[%emt 0:00:03]} Be7 {[%emt 0:00:57]} 31. fxg6 {[%emt 0:01:11]} hxg6 {[%emt 0:00:09]} 32. h7 {[%emt 0:01:10]} Rde8 {[%emt 0:01:12]} (32... Bg5 $19 33. b7+ Kb8) 33. Kd1 {[%emt 0:00:09]} Bd8 {[%emt 0:01:28]} ({Black should play} 33... Bg5 $17 34. Kc2 Bf4) 34. a4 {[%emt 0:00:22]} Kb7 {[%emt 0:00:26]} 35. a5 {[%emt 0:00:02]} Re7 {[%emt 0:00:14]} 36. Rh6 $2 {[%emt 0:01:29]} ({White should play} 36. f4 $1 $15) 36... Rhxh7 {[%emt 0:00:12]} 37. Rxh7 {[%emt 0:00:21]} Rxh7 {[%emt 0:00:01]} 38. Ke2 {[%emt 0:02:33]} Bf6 $2 {[%emt 0:00:42]} (38... Re7+ $19 39. Kf1 Re8) 39. f4 {[%emt 0:00:35]} g5 {[%emt 0:01:18]} (39... Ka6 $17) 40. fxg5 $2 {[%emt 0:00:00]} (40. Kf3 $1 $11) 40... Bxg5 {[%emt 0:00:00]} 41. Rg1 {[%emt 0:15:20]} Re7+ {[%emt 0:01:55]} 42. Kd1 {[%emt 0:01:39]} Bf4 {[%emt 0:00:57]} 43. Rg4 {[%emt 0:06:27]} Rf7 {[%emt 0:00:27]} 44. Rg8 $1 {[%emt 0:01:32]} Bh6 {[%emt 0:01:43]} 45. Rg6 {[%emt 0:00:33] [#]} (45. Rd8 $11) 45... Bf8 $1 {[%emt 0:00:15]} 46. Re6 {[%emt 0:01:40]} Rxf2 {[%emt 0:01:11]} 47. Re8 {[%emt 0:00:19] [#]} Rf7 {[%emt 0:00:10]} (47... Rf3 $1 $17 {[%cal Rf3d3]} 48. Kd2 Bh6+ 49. Kc2 Bg5) 48. Kc2 {[%emt 0:00:18]} Rf1 {[%emt 0:11:52]} 49. Kb3 {[%emt 0:01:30]} d5 {[%emt 0:06:39]} 50. cxd5 {[%emt 0:00:30]} Bd6 {[%emt 0:04:49]} 51. Rd8 {[%emt 0:01:18]} Be5 {[%emt 0:03:18]} 52. Rd7+ {[%emt 0:01:38]} Kc8 {[%emt 0:01:00]} 53. Ra7 {[%emt 0:01:26]} Rb1+ {[%emt 0:03:05]} 54. Kc4 $2 {[%emt 0:00:44]} (54. Kc2 $11 Rb5 55. Ra8+ Kb7 56. Ra7+ Kc8 57. Ra8+ Kb7 58. Ra7+ Kc8) 54... Bd6 {[%emt 0:00:16]} 55. Rh7 {[%emt 0:01:24]} Rb4# {[%emt 0:00:14]} 0-1